bitfinex/quotes_BTCUSD_20230405
["timestamp","ask_amount","ask_price","bid_price","bid_amount"]
[1680697064065,0.98247356,28557.0,28556.0,0.026548]
[1680697064286,0.99847356,28557.0,28556.0,0.026548]
[1680697064511,1.00197456,28557.0,28556.0,0.026548]
[1680697064743,1.46135616,28557.0,28556.0,0.026548]
[1680697064976,1.46952747,28557.0,28556.0,0.026548]
[1680697065197,1.37874587,28557.0,28556.0,0.026548]
[1680697065423,1.36274587,28557.0,28556.0,0.024548]
[1680697065653,1.37874587,28557.0,28556.0,0.026548]
[1680697065878,1.39625209,28557.0,28556.0,0.026548]
[1680697066111,0.15,28556.0,28549.0,0.00012]
[1680697066341,0.1462,28550.0,28547.0,0.02186]
[1680697066570,0.72331056,28553.0,28547.0,0.02198]
[1680697066571,0.1456,28548.0,28547.0,0.02198]
[1680697066807,0.64220737,28548.0,28547.0,0.02198]
[1680697067037,0.64220737,28548.0,28547.0,0.0218]
[1680697067038,0.50031056,28548.0,28547.0,0.0218]
[1680697067758,0.51831056,28548.0,28547.0,0.02398]
[1680697067981,0.50031056,28548.0,28547.0,0.02198]
[1680697068203,0.51831056,28548.0,28547.0,0.02398]
[1680697068424,0.50037056,28548.0,28547.0,0.02074389]
[1680697068658,0.51831056,28548.0,28547.0,0.02268389]
[1680697068879,0.631646,28548.0,28547.0,0.02268389]
[1680697069568,0.613646,28548.0,28547.0,0.02068389]
[1680697069789,0.613646,28548.0,28547.0,0.02268389]
[1680697070012,0.018,28548.0,28547.0,0.04692189]
[1680697070244,0.018,28548.0,28547.0,0.41869894]
[1680697070462,0.018,28548.0,28547.0,0.41400675]
[1680697070905,0.018,28548.0,28547.0,0.41406675]
[1680697071125,0.1299603,28549.0,28547.0,0.41212675]
[1680697071355,0.00021,28552.0,28547.0,0.40094875]
[1680697071356,0.001,28548.0,28547.0,0.40094875]
[1680697071572,0.001,28548.0,28547.0,0.42523675]
[1680697071827,0.001,28548.0,28547.0,0.03308507]
[1680697072042,0.10591731,28548.0,28547.0,0.03308507]
[1680697072260,0.10941931,28548.0,28547.0,0.03308507]
[1680697072488,0.10841931,28548.0,28547.0,0.02008507]
[1680697072724,0.46412987,28548.0,28547.0,0.03308507]
[1680697072948,0.46312987,28548.0,28547.0,0.02008507]
[1680697073185,0.49924387,28548.0,28547.0,0.02008507]
[1680697073409,0.00021,28548.0,28547.0,0.46977761]
[1680697073642,0.00021,28548.0,28547.0,0.47177761]
[1680697073643,0.016,28548.0,28547.0,0.47177761]
[1680697073864,0.016,28548.0,28547.0,0.46977761]
[1680697073865,0.00021,28548.0,28547.0,0.46977761]
[1680697074105,0.01621,28548.0,28547.0,0.47177761]
[1680697074374,0.00021,28549.0,28547.0,0.46977761]
[1680697074820,0.30021,28549.0,28547.0,0.46977761]
[1680697075059,0.30009061,28549.0,28547.0,0.46977761]
[1680697075299,0.3,28549.0,28547.0,0.46995761]
[1680697075539,0.016,28548.0,28547.0,0.02226507]
[1680697075760,0.3,28549.0,28547.0,0.02108507]
[1680697075761,0.007,28549.0,28547.0,0.02108507]
[1680697076008,0.007,28549.0,28548.0,0.44359251]
[1680697076241,0.12230704,28552.0,28548.0,0.44359251]
[1680697076460,0.007,28549.0,28548.0,0.42019651]
[1680697076683,0.10710034,28551.0,28548.0,0.02351]
[1680697076932,0.87711056,28549.0,28547.0,0.02108507]
[1680697077150,0.68893456,28548.0,28547.0,0.02108507]
[1680697077379,0.68893456,28548.0,28547.0,0.02120507]
[1680697077602,0.68893456,28548.0,28547.0,0.02108507]
[1680697078069,0.034224,28548.0,28547.0,0.02108507]
[1680697078298,0.1538,28549.0,28547.0,0.41067518]
[1680697078299,0.007,28549.0,28547.0,0.41067518]
[1680697078539,0.35471056,28548.0,28547.0,0.40967518]
[1680697078763,0.38965656,28548.0,28547.0,0.02026507]
[1680697079002,0.55765656,28548.0,28547.0,0.02008507]
[1680697079458,0.13693226,28548.0,28547.0,0.02008507]
[1680697079725,0.79146221,28548.0,28547.0,0.02008507]
[1680697079953,0.77364282,28548.0,28547.0,0.02008507]
[1680697080176,0.80064282,28548.0,28547.0,0.02008507]
[1680697080403,0.77346221,28548.0,28547.0,0.02008507]
[1680697081298,0.83443921,28548.0,28547.0,0.02008507]
[1680697081750,0.80046221,28548.0,28547.0,0.02008507]
[1680697081983,0.68171056,28548.0,28547.0,0.02008507]
[1680697082435,0.80384995,28548.0,28547.0,0.02008507]
[1680697084006,0.83737895,28548.0,28547.0,0.02008507]
[1680697084224,0.50384995,28548.0,28547.0,0.02008507]
[1680697084672,0.027,28548.0,28547.0,0.40643833]
[1680697084921,0.027,28548.0,28547.0,0.43038033]
[1680697085356,0.13153118,28551.0,28547.0,0.43038033]
[1680697085586,0.00018061,28554.0,28548.0,0.022787]
[1680697085824,0.46874159,28553.0,28547.0,0.45049436]
[1680697086056,0.46874159,28553.0,28548.0,0.0408727]
[1680697086302,0.35471056,28553.0,28547.0,0.02108507]
[1680697086529,0.00886323,28563.0,28551.0,0.1468]
[1680697086755,0.12840868,28562.0,28552.0,1.142429]
[1680697086985,0.14189681,28562.0,28553.0,0.52967856]
[1680697087211,0.13087173,28561.0,28555.0,0.1468]
[1680697087476,0.13087173,28561.0,28556.0,0.024986]
[1680697087711,0.13087173,28561.0,28556.0,0.0423626]
[1680697087932,0.13087173,28561.0,28557.0,0.02387]
[1680697088151,0.13087173,28561.0,28557.0,0.02405]
[1680697088392,0.003,28561.0,28557.0,0.02405]
[1680697088620,0.12763241,28563.0,28557.0,0.17067]
[1680697088836,0.002,28561.0,28557.0,0.17232466]
[1680697089061,0.002,28561.0,28558.0,0.025002]
[1680697089279,0.002,28561.0,28558.0,0.04474067]
[1680697089496,0.002,28561.0,28560.0,0.024254]
[1680697090186,0.12468928,28565.0,28560.0,0.024254]
[1680697090408,0.001,28561.0,28560.0,0.024254]
[1680697090618,0.13127642,28563.0,28560.0,0.450954]
[1680697090834,0.13127642,28563.0,28562.0,0.027018]
[1680697091052,0.11692312,28561.0,28560.0,0.026419]
[1680697091298,0.25869993,28561.0,28560.0,0.001]
[1680697091518,0.47151368,28561.0,28560.0,0.001]
[1680697091734,0.47151368,28561.0,28557.0,0.3334195]
[1680697091952,0.35471056,28560.0,28557.0,0.3334195]
[1680697092167,0.11680312,28561.0,28558.0,0.42538296]
[1680697092168,0.11710312,28561.0,28558.0,0.42538296]
[1680697092444,0.47151368,28561.0,28558.0,0.42538296]
[1680697092673,0.11710312,28561.0,28558.0,0.46793926]
[1680697092897,0.0003,28562.0,28560.0,0.025037]
[1680697093134,0.02198,28566.0,28560.0,0.001]
[1680697093135,0.12657345,28563.0,28560.0,0.001]
[1680697093361,0.12657345,28563.0,28560.0,0.04137243]
[1680697093362,0.0003,28563.0,28560.0,0.04137243]
[1680697093587,0.012,28561.0,28559.0,0.1461]
[1680697093874,0.12480437,28565.0,28561.0,0.15]
[1680697094090,0.025,28562.0,28560.0,0.001]
[1680697094310,0.025,28562.0,28561.0,0.024256]
[1680697094546,0.12503835,28564.0,28561.0,0.024256]
[1680697094768,0.001,28563.0,28560.0,0.031428]
[1680697094993,0.001,28563.0,28562.0,0.36153417]
[1680697095629,0.0003,28564.0,28562.0,0.0225]
[1680697095842,0.09918179,28565.0,28561.0,0.44875623]
[1680697096052,0.09906771,28565.0,28562.0,0.024216]
[1680697096277,0.09876771,28565.0,28562.0,0.025216]
[1680697096492,0.09876771,28565.0,28561.0,0.44893623]
[1680697096705,0.09876771,28565.0,28562.0,0.001]
[1680697096920,0.64310737,28564.0,28561.0,0.00018]
[1680697097135,0.03481,28562.0,28557.0,0.00117789]
[1680697097346,0.49660737,28561.0,28557.0,0.00117789]
[1680697097558,0.35471056,28561.0,28557.0,0.00117789]
[1680697097772,0.4897616,28561.0,28557.0,0.00018]
[1680697098193,0.47494802,28561.0,28557.0,0.00018]
[1680697098399,0.15,28560.0,28557.0,0.00012]
[1680697098614,0.47494802,28561.0,28557.0,0.00018]
[1680697098840,0.47494802,28561.0,28557.0,0.03684447]
[1680697099250,0.47494802,28561.0,28557.0,0.00018]
[1680697099464,0.012,28560.0,28557.0,0.00118]
[1680697099674,0.012,28560.0,28551.0,0.20789143]
[1680697099675,0.53804256,28559.0,28551.0,0.20789143]
[1680697099881,0.26088222,28558.0,28557.0,0.001]
[1680697100165,0.48942497,28558.0,28557.0,0.001]
[1680697100368,0.39450056,28558.0,28555.0,0.0019]
[1680697100590,0.003801,28558.0,28557.0,0.001]
[1680697100806,0.003801,28558.0,28552.0,0.20789143]
[1680697100807,0.1468,28556.0,28552.0,0.00099841]
[1680697101014,0.1456,28553.0,28552.0,0.00099841]
[1680697101224,0.67967737,28553.0,28549.0,0.20807143]
[1680697101463,0.14189681,28552.0,28549.0,0.08328157]
[1680697101680,0.49660737,28552.0,28549.0,0.08328157]
[1680697101886,0.033427,28551.0,28550.0,0.08310157]
[1680697102094,0.35471056,28551.0,28550.0,0.08328157]
[1680697102738,0.46243468,28551.0,28550.0,0.08328157]
[1680697103161,0.48743468,28551.0,28550.0,0.08328157]
[1680697103374,0.59234603,28551.0,28550.0,0.08328157]
[1680697103591,1.04595667,28551.0,28549.0,0.00018]
[1680697103808,0.53909556,28550.0,28548.0,0.08328157]
[1680697104049,0.184877,28549.0,28548.0,0.08328157]
[1680697104273,0.80501256,28549.0,28548.0,0.08328157]
[1680697104481,0.83909156,28549.0,28547.0,0.10336664]
[1680697104691,0.50471056,28548.0,28547.0,0.2279765]
[1680697104913,0.50471056,28548.0,28547.0,0.2281565]
[1680697104914,0.65821256,28548.0,28547.0,0.2281565]
[1680697105115,0.79075552,28548.0,28547.0,0.2281565]
[1680697105343,0.78725352,28548.0,28547.0,0.2281565]
[1680697105769,0.78725352,28548.0,28547.0,0.10526664]
[1680697105979,0.78725352,28548.0,28547.0,0.10520664]
[1680697106185,0.81225352,28548.0,28547.0,0.2299965]
[1680697106393,0.8121478,28548.0,28547.0,0.2299965]
[1680697106651,0.8121478,28548.0,28547.0,0.10520664]
[1680697106865,0.68310684,28548.0,28547.0,0.10508664]
[1680697107070,0.84278723,28548.0,28547.0,0.02198507]
[1680697107714,1.21138723,28548.0,28547.0,0.02008507]
[1680697107985,1.18638723,28548.0,28547.0,0.02008507]
[1680697108212,1.21338723,28548.0,28547.0,0.02008507]
[1680697108648,0.71568884,28548.0,28547.0,0.01897605]
[1680697108861,0.68190484,28548.0,28547.0,0.01897605]
[1680697109065,0.71644984,28548.0,28547.0,0.01897605]
[1680697109702,0.68190484,28548.0,28547.0,0.43103498]
[1680697109915,0.0273,28548.0,28547.0,0.64197591]
[1680697110132,0.12766811,28551.0,28547.0,0.66761391]
[1680697110349,0.35471056,28550.0,28548.0,0.024497]
[1680697110603,0.35471056,28550.0,28548.0,0.37418937]
[1680697110816,0.35501056,28550.0,28548.0,0.34969237]
[1680697111226,0.35471056,28550.0,28548.0,0.34987237]
[1680697111434,0.38141056,28550.0,28548.0,0.34987237]
[1680697111641,0.3,28549.0,28548.0,0.34987237]
[1680697111857,0.012,28550.0,28548.0,0.00018]
[1680697112067,0.012,28550.0,28548.0,0.10747407]
[1680697112286,0.012,28550.0,28549.0,0.024281]
[1680697112495,0.012,28550.0,28549.0,0.40142231]
[1680697112711,0.012,28550.0,28549.0,0.40185388]
[1680697112927,0.12189483,28555.0,28549.0,0.19397905]
[1680697113168,0.012,28550.0,28549.0,0.16969805]
[1680697113378,0.10161418,28554.0,28549.0,0.62829265]
[1680697113587,0.003,28550.0,28549.0,0.60329465]
[1680697113797,0.35471056,28553.0,28549.0,0.75198507]
[1680697114011,0.35471056,28553.0,28550.0,0.10726897]
[1680697114245,0.35471056,28553.0,28551.0,0.023836]
[1680697114486,0.35471056,28553.0,28551.0,0.024016]
[1680697114703,0.35471056,28553.0,28551.0,0.00018]
[1680697115764,0.35571056,28553.0,28551.0,0.4139767]
[1680697115973,0.35471056,28553.0,28551.0,0.4139767]
[1680697116394,0.42641192,28552.0,28551.0,0.00018]
[1680697116608,0.96211209,28552.0,28548.0,0.00012]
[1680697116822,0.71560234,28552.0,28551.0,0.0014]
[1680697117034,0.57370553,28552.0,28551.0,0.0014]
[1680697117251,0.60948453,28552.0,28551.0,0.0014]
[1680697117665,0.62148453,28552.0,28551.0,0.0014]
[1680697117874,0.62178453,28552.0,28551.0,0.0014]
[1680697118094,0.43600553,28552.0,28551.0,0.0014]
[1680697118325,0.66430417,28552.0,28551.0,0.0014]
[1680697118734,0.65230417,28552.0,28551.0,0.0014]
[1680697118944,0.65230417,28552.0,28551.0,0.36224357]
[1680697119157,0.67730417,28552.0,28551.0,0.36224357]
[1680697119396,0.65230417,28552.0,28551.0,0.0014]
[1680697119852,0.67030417,28552.0,28551.0,0.0014]
[1680697120064,0.65230417,28552.0,28551.0,0.0014]
[1680697120286,0.81641958,28552.0,28551.0,0.0014]
[1680697120508,1.07261817,28552.0,28551.0,0.0014]
[1680697120717,1.07261817,28552.0,28547.0,0.01996983]
[1680697120718,1.06911817,28552.0,28547.0,0.01996983]
[1680697120942,0.15,28550.0,28547.0,0.01996983]
[1680697121157,0.38743756,28549.0,28547.0,0.01996983]
[1680697121382,0.35471056,28549.0,28547.0,0.01915605]
[1680697121602,0.035081,28548.0,28547.0,0.01915605]
[1680697121812,0.38979156,28548.0,28547.0,0.01915605]
[1680697122029,0.38979156,28548.0,28547.0,0.01897605]
[1680697122294,0.35471056,28548.0,28547.0,0.01897605]
[1680697122717,0.76745862,28548.0,28547.0,0.02047605]
[1680697122940,0.68995756,28548.0,28547.0,0.02047605]
[1680697123159,0.71495756,28548.0,28547.0,0.02047605]
[1680697123391,0.82670949,28548.0,28547.0,0.02047605]
[1680697123812,0.80170949,28548.0,28547.0,0.02047605]
[1680697124221,0.64884064,28548.0,28547.0,0.02047605]
[1680697124656,0.50170949,28548.0,28547.0,0.02047605]
[1680697125303,0.52870949,28548.0,28547.0,0.02047605]
[1680697125960,0.53720949,28548.0,28547.0,0.02047605]
[1680697126594,0.51020949,28548.0,28547.0,0.02047605]
[1680697126809,0.53715534,28548.0,28547.0,0.02047605]
[1680697127019,0.53709534,28548.0,28547.0,0.02047605]
[1680697127245,0.52859534,28548.0,28547.0,0.02047605]
[1680697127893,0.50159534,28548.0,28547.0,0.02047605]
[1680697128137,0.52859534,28548.0,28547.0,0.02047605]
[1680697129207,0.82859534,28548.0,28547.0,0.02047605]
[1680697129414,0.80159534,28548.0,28547.0,0.02047605]
[1680697129624,0.82859534,28548.0,28547.0,0.02047605]
[1680697133744,0.80159534,28548.0,28547.0,0.02047605]
[1680697133970,0.82859534,28548.0,28547.0,0.02047605]
[1680697136773,0.72034541,28548.0,28547.0,0.02047605]
[1680697136992,0.83321905,28548.0,28547.0,0.02047605]
[1680697137206,0.83310892,28548.0,28547.0,0.02047605]
[1680697137424,0.8190718,28548.0,28547.0,0.02047605]
[1680697137608,0.8155698,28548.0,28547.0,0.02047605]
[1680697140776,0.72023528,28548.0,28547.0,0.02047605]
[1680697140987,0.82388306,28548.0,28547.0,0.02047605]
[1680697142296,0.82738506,28548.0,28547.0,0.02047605]
[1680697142504,0.72023528,28548.0,28547.0,0.02047605]
[1680697142736,0.82543003,28548.0,28547.0,0.02047605]
[1680697143609,0.82192803,28548.0,28547.0,0.02047605]
[1680697143822,0.82543003,28548.0,28547.0,0.02047605]
[1680697144027,0.79018303,28548.0,28547.0,0.02047605]
[1680697144235,0.78668103,28548.0,28547.0,0.02047605]
[1680697147116,0.75968103,28548.0,28547.0,0.02047605]
[1680697147328,0.78457633,28548.0,28547.0,0.02047605]
[1680697148189,0.75957633,28548.0,28547.0,0.02047605]
[1680697148623,0.78657633,28548.0,28547.0,0.02047605]
[1680697152475,0.68488358,28548.0,28547.0,0.02047605]
[1680697152681,0.81554341,28548.0,28547.0,0.02047605]
[1680697152942,0.81914228,28548.0,28547.0,0.02047605]
[1680697153165,0.72150558,28548.0,28547.0,0.02047605]
[1680697153504,0.85555586,28548.0,28547.0,0.02047605]
[1680697154112,0.82855586,28548.0,28547.0,0.02047605]
[1680697154326,0.85555586,28548.0,28547.0,0.02047605]
[1680697157187,0.8534407,28548.0,28547.0,0.01897605]
[1680697157618,0.81671776,28548.0,28547.0,0.01897605]
[1680697157834,0.84942876,28548.0,28547.0,0.01897605]
[1680697159091,0.81671776,28548.0,28547.0,0.01897605]
[1680697160344,0.81321576,28548.0,28547.0,0.01897605]
[1680697161414,0.79783162,28548.0,28547.0,0.01897605]
[1680697162078,0.68478264,28548.0,28547.0,0.01897605]
[1680697163160,0.78931687,28548.0,28547.0,0.01897605]
[1680697163587,0.68468632,28548.0,28547.0,0.01897605]
[1680697163794,1.07079254,28548.0,28547.0,0.01897605]
[1680697164007,1.26987654,28548.0,28547.0,0.01897605]
[1680697164497,1.45317654,28548.0,28547.0,0.01897605]
[1680697164935,1.48017654,28548.0,28547.0,0.01897605]
[1680697165145,1.45317654,28548.0,28547.0,0.01897605]
[1680697165353,1.48017654,28548.0,28547.0,0.01897605]
[1680697165562,1.48047654,28548.0,28547.0,0.01897605]
[1680697166645,1.45347654,28548.0,28547.0,0.01897605]
[1680697166868,1.48047654,28548.0,28547.0,0.01897605]
[1680697167077,1.45347654,28548.0,28547.0,0.01897605]
[1680697167293,1.63343879,28548.0,28547.0,0.01897605]
[1680697167506,1.66043879,28548.0,28547.0,0.01897605]
[1680697167926,1.48007423,28548.0,28547.0,0.01897605]
[1680697169490,1.57866654,28548.0,28547.0,6.05e-06]
[1680697169914,1.56116032,28548.0,28547.0,6.05e-06]
[1680697170337,1.55166654,28548.0,28547.0,6.05e-06]
[1680697170561,1.56116032,28548.0,28547.0,6.05e-06]
[1680697170745,1.77982149,28548.0,28547.0,6.05e-06]
[1680697171308,1.75282149,28548.0,28547.0,6.05e-06]
[1680697171490,1.77982149,28548.0,28547.0,6.05e-06]
[1680697171923,2.32697822,28548.0,28547.0,6.05e-06]
[1680697172654,2.29997822,28548.0,28547.0,6.05e-06]
[1680697172855,2.21630466,28548.0,28547.0,6.05e-06]
[1680697173097,1.68654349,28548.0,28547.0,6.05e-06]
[1680697173645,1.65954349,28548.0,28547.0,6.05e-06]
[1680697173848,1.86452282,28548.0,28547.0,6.05e-06]
[1680697174076,1.89152282,28548.0,28547.0,6.05e-06]
[1680697174690,1.86452282,28548.0,28547.0,6.05e-06]
[1680697175235,2.0959853,28548.0,28547.0,6.05e-06]
[1680697175455,2.0959853,28548.0,28536.0,0.2021047]
[1680697175456,0.6371,28546.0,28536.0,0.2021047]
[1680697175702,0.0818,28538.0,28536.0,0.07679828]
[1680697175895,0.53180637,28537.0,28536.0,0.07697828]
[1680697176101,0.53180637,28537.0,28536.0,0.02240075]
[1680697176102,0.83180637,28537.0,28536.0,0.02240075]
[1680697176239,0.83180637,28537.0,28536.0,0.02234075]
[1680697176240,0.68990956,28537.0,28536.0,0.02234075]
[1680697177282,0.68990956,28537.0,28536.0,0.02222075]
[1680697177495,0.71690956,28537.0,28536.0,0.02222075]
[1680697177907,0.68171056,28537.0,28536.0,0.02222075]
[1680697178127,0.68171056,28537.0,28536.0,0.02542075]
[1680697178347,0.68161349,28537.0,28536.0,0.46044434]
[1680697178559,0.68161349,28537.0,28536.0,0.46062434]
[1680697178772,0.68068349,28537.0,28536.0,0.46062434]
[1680697178980,0.68032349,28537.0,28536.0,0.46062434]
[1680697179616,0.327,28537.0,28536.0,0.46062434]
[1680697180039,0.027,28537.0,28536.0,0.46062434]
[1680697180247,0.327,28537.0,28536.0,0.46044434]
[1680697180459,0.327,28537.0,28536.0,0.46062434]
[1680697181789,0.52360737,28537.0,28536.0,0.02560075]
[1680697182023,0.87180639,28537.0,28536.0,0.02542075]
[1680697182229,0.85430017,28537.0,28536.0,0.02542075]
[1680697182439,0.86831617,28537.0,28536.0,0.02222075]
[1680697182648,0.86801617,28537.0,28536.0,0.01532595]
[1680697182857,0.84101617,28537.0,28536.0,0.01532595]
[1680697183075,0.82411956,28537.0,28536.0,0.01532595]
[1680697183361,1.16571956,28537.0,28536.0,0.01532595]
[1680697183574,1.19271956,28537.0,28536.0,0.01532595]
[1680697183995,1.16571956,28537.0,28536.0,0.01532595]
[1680697184409,1.19271956,28537.0,28536.0,0.01532595]
[1680697184654,1.19271956,28537.0,28528.0,0.0218]
[1680697184655,0.5789,28535.0,28528.0,0.02192]
[1680697184860,0.43651056,28531.0,28528.0,0.0218]
[1680697185065,0.48669081,28530.0,28528.0,0.0218]
[1680697185279,0.38795056,28529.0,28528.0,0.0218]
[1680697185483,0.69145556,28529.0,28528.0,0.0218]
[1680697185695,0.65471056,28529.0,28528.0,0.46145025]
[1680697185904,0.65471056,28529.0,28528.0,0.02198]
[1680697186109,0.65471056,28529.0,28528.0,0.0234]
[1680697186308,0.68521556,28529.0,28528.0,0.0234]
[1680697186522,0.15,28528.0,28527.0,0.0026275]
[1680697186729,0.83923356,28528.0,28527.0,0.0025675]
[1680697186938,0.98291383,28528.0,28527.0,0.0025675]
[1680697187190,0.94709121,28528.0,28527.0,0.0025675]
[1680697187367,1.36768814,28528.0,28527.0,0.0025675]
[1680697187572,1.44948814,28528.0,28527.0,0.0025675]
[1680697188004,1.57828814,28528.0,28527.0,0.0025675]
[1680697188217,1.57798814,28528.0,28527.0,0.0025675]
[1680697188446,1.60498814,28528.0,28527.0,0.0025675]
[1680697188882,1.60487573,28528.0,28527.0,0.0025675]
[1680697189516,1.92848121,28528.0,28527.0,0.0025675]
[1680697189760,1.90148121,28528.0,28527.0,0.0025675]
[1680697189971,1.99277499,28528.0,28527.0,0.0025675]
[1680697190393,1.97984499,28528.0,28527.0,0.0025675]
[1680697190816,1.83050541,28528.0,28527.0,0.0025675]
[1680697191100,1.80350541,28528.0,28527.0,0.0025675]
[1680697191314,1.82101163,28528.0,28527.0,0.0025675]
[1680697191520,1.99628163,28528.0,28527.0,0.0025675]
[1680697191731,2.02328163,28528.0,28527.0,0.0025675]
[1680697191938,2.23059222,28528.0,28527.0,0.0025675]
[1680697192146,2.22559222,28528.0,28527.0,0.0025675]
[1680697193235,1.84301163,28528.0,28527.0,0.0025675]
[1680697193450,1.67981163,28528.0,28527.0,0.0025675]
[1680697193669,1.66230541,28528.0,28527.0,0.0025675]
[1680697194093,1.74410541,28528.0,28527.0,0.0025675]
[1680697194303,0.3686,28526.0,28520.0,0.02902552]
[1680697194527,1.20964837,28525.0,28520.0,0.02902552]
[1680697194740,0.72331056,28522.0,28520.0,0.02920552]
[1680697194966,0.037788,28521.0,28520.0,0.02920552]
[1680697195180,0.69249856,28521.0,28520.0,0.02920552]
[1680697195386,0.69249856,28521.0,28520.0,0.028211]
[1680697195611,0.65821656,28521.0,28520.0,0.00018]
[1680697196033,0.65471056,28521.0,28520.0,0.00018]
[1680697196296,0.65471056,28521.0,28519.0,0.00018]
[1680697196502,0.35471056,28520.0,28519.0,0.00018]
[1680697196709,0.65471056,28520.0,28519.0,0.00018]
[1680697197770,0.68171056,28520.0,28519.0,0.00018]
[1680697198413,0.68171056,28520.0,28519.0,0.14470585]
[1680697198622,0.027,28520.0,28519.0,0.106376]
[1680697199132,0.02688378,28520.0,28519.0,0.106196]
[1680697199344,0.02688378,28520.0,28519.0,0.48855978]
[1680697199560,0.12964172,28524.0,28519.0,0.48855978]
[1680697199773,0.012,28520.0,28519.0,0.38236378]
[1680697199977,0.012,28520.0,28519.0,0.48757978]
[1680697200420,0.35501056,28523.0,28519.0,0.48757978]
[1680697200629,0.35501056,28523.0,28520.0,0.1067]
[1680697200839,0.35501056,28523.0,28521.0,0.02457]
[1680697201264,0.37401056,28523.0,28521.0,0.02457]
[1680697201473,0.37401056,28523.0,28521.0,0.36243428]
[1680697201672,0.37401056,28523.0,28522.0,0.023348]
[1680697202083,0.37401056,28523.0,28521.0,0.33786428]
[1680697202299,0.35501056,28523.0,28520.0,0.08192]
[1680697202518,0.50943837,28523.0,28521.0,0.024012]
[1680697202817,0.09724885,28522.0,28520.0,0.37713657]
[1680697203025,0.09724885,28522.0,28521.0,0.022777]
[1680697203236,0.09724885,28522.0,28520.0,0.024853]
[1680697203650,0.09724885,28522.0,28520.0,0.106353]
[1680697203876,0.09724885,28522.0,28521.0,0.024464]
[1680697204111,0.45195941,28522.0,28521.0,0.024464]
[1680697204331,0.47925941,28522.0,28521.0,0.024464]
[1680697205170,0.57904535,28522.0,28519.0,0.17]
[1680697205391,0.35471056,28521.0,28519.0,0.17]
[1680697206231,0.35501056,28521.0,28519.0,0.165]
[1680697206613,0.1057213,28520.0,28519.0,0.165]
[1680697206912,0.91855424,28520.0,28519.0,0.165]
[1680697207132,1.06198656,28520.0,28519.0,0.165]
[1680697208008,1.35328656,28520.0,28519.0,0.12632812]
[1680697208223,1.35328656,28520.0,28519.0,8.12e-06]
[1680697208434,1.42608145,28520.0,28519.0,8.12e-06]
[1680697208649,1.37128656,28520.0,28519.0,8.12e-06]
[1680697208852,1.35328656,28520.0,28519.0,8.12e-06]
[1680697209096,1.41513826,28520.0,28519.0,8.12e-06]
[1680697209303,1.38803544,28520.0,28519.0,8.12e-06]
[1680697209508,1.41503544,28520.0,28519.0,8.12e-06]
[1680697209710,1.70699268,28520.0,28519.0,8.12e-06]
[1680697209918,1.73469268,28520.0,28519.0,8.12e-06]
[1680697210124,1.70769268,28520.0,28519.0,8.12e-06]
[1680697210558,1.56405544,28520.0,28519.0,8.12e-06]
[1680697210978,1.64605544,28520.0,28519.0,8.12e-06]
[1680697211187,1.69056166,28520.0,28519.0,8.12e-06]
[1680697211409,1.69056166,28520.0,28514.0,0.0219]
[1680697211410,1.64605544,28520.0,28513.0,6e-05]
[1680697211636,0.5789,28513.0,28510.0,6e-05]
[1680697211846,0.5789,28513.0,28507.0,0.02192]
[1680697211847,0.72331056,28511.0,28507.0,0.0218]
[1680697212061,0.35471056,28509.0,28507.0,0.0218]
[1680697212271,0.14189681,28508.0,28507.0,0.0218]
[1680697212486,0.65471056,28508.0,28507.0,0.45056343]
[1680697212690,0.65471056,28508.0,28507.0,0.19198]
[1680697213979,0.68527756,28508.0,28507.0,0.01692]
[1680697214248,1.09607082,28508.0,28507.0,0.0168]
[1680697214459,1.15769582,28508.0,28507.0,0.0168]
[1680697214890,1.15739582,28508.0,28507.0,0.0168]
[1680697215581,1.15769582,28508.0,28507.0,0.0168]
[1680697215790,1.36799582,28508.0,28507.0,0.0168]
[1680697216005,0.3686,28506.0,28501.0,0.3072586]
[1680697216238,0.3686,28506.0,28500.0,0.10550959]
[1680697216239,0.80011537,28505.0,28500.0,0.10550959]
[1680697216451,0.50471056,28503.0,28500.0,0.0218]
[1680697216662,0.3,28502.0,28500.0,0.0218]
[1680697216881,0.036176,28501.0,28500.0,0.0218]
[1680697217105,0.39088656,28501.0,28500.0,0.0218]
[1680697217326,0.47355328,28501.0,28500.0,0.0218]
[1680697217536,0.77355328,28501.0,28500.0,0.0218]
[1680697217758,0.80641828,28501.0,28500.0,0.0218]
[1680697218020,0.80055328,28501.0,28500.0,0.0218]
[1680697218232,0.65471056,28501.0,28500.0,0.0218]
[1680697218445,0.65844273,28501.0,28500.0,0.0218]
[1680697219085,0.35844273,28501.0,28500.0,0.0218]
[1680697219321,0.47497924,28501.0,28500.0,0.0218]
[1680697219533,0.44787876,28501.0,28500.0,0.0218]
[1680697219738,0.47487876,28501.0,28500.0,0.0218]
[1680697219947,0.11653651,28501.0,28500.0,0.0218]
[1680697220169,0.027,28501.0,28500.0,0.0218]
[1680697220392,0.0003,28504.0,28501.0,0.15]
[1680697220598,0.307016,28506.0,28502.0,0.02345]
[1680697220599,0.0003,28506.0,28502.0,0.02345]
[1680697220819,0.10339875,28509.0,28502.0,0.02345]
[1680697221035,0.58238226,28517.0,28508.0,0.0815]
[1680697221036,0.0003,28514.0,28508.0,0.0815]
[1680697221245,0.12135129,28511.0,28508.0,0.00815]
[1680697221457,0.12135129,28511.0,28504.0,0.082]
[1680697221458,0.12135129,28511.0,28509.0,0.105405]
[1680697221669,0.0003,28512.0,28510.0,0.023696]
[1680697221968,0.13274539,28511.0,28509.0,0.0813]
[1680697222181,0.1362218,28510.0,28509.0,0.0813]
[1680697222389,0.35471056,28511.0,28509.0,0.44282355]
[1680697222390,0.0003,28511.0,28509.0,0.44282355]
[1680697222614,0.0003,28511.0,28510.0,0.101907]
[1680697222830,0.012,28512.0,28510.0,0.101907]
[1680697223061,0.0003,28515.0,28511.0,0.104661]
[1680697223062,0.11020172,28515.0,28511.0,0.104661]
[1680697223283,0.48040286,28514.0,28512.0,0.104991]
[1680697223518,0.48040286,28514.0,28513.0,0.023053]
[1680697223927,0.48040286,28514.0,28512.0,0.082]
[1680697224154,0.1256923,28514.0,28513.0,0.022348]
[1680697224371,0.025,28514.0,28513.0,0.103948]
[1680697225226,0.09739443,28515.0,28513.0,0.103948]
[1680697225448,0.027,28514.0,28512.0,0.52332846]
[1680697225683,0.027,28514.0,28513.0,0.45861899]
[1680697226115,0.0003,28518.0,28513.0,0.54001899]
[1680697226333,0.42259281,28519.0,28517.0,0.0816]
[1680697226558,0.42259281,28519.0,28518.0,0.082]
[1680697226559,0.0003,28519.0,28518.0,0.082]
[1680697226778,0.0003,28520.0,28518.0,0.18762]